Cogmind - Beta 16 --- EXPLORER MODE // 2025.12.16 @ 15:01:11 Player: K.K.Y. Result: Destroyed by Piercing Trap Performance ------------- Evolutions (0) 0 Regions Visited (3) 600 Robots Destroyed (55) 275 Value Destroyed (948) 948 Prototype IDs (0) 0 Alien Tech Used (0) 0 Bonus (0) 0 TOTAL SCORE: 1823 Bonus ------- None Cogmind --------- Core Integrity 0/250 Matter 282/300 Energy 98/100 System Corruption 0% Temperature Cool (0) Movement Rolling (130) Ox2 Location -10/Subcaves Parts ------- > --- POWER (1) -------- (None) > --- PROPULSION (2) --- Subdweller Monowheel Subdweller Monowheel > --- UTILITY (3) ------ Huge Storage Unit Structural Scanner Makeshift Hacking Suite > --- WEAPON (2) ------- Heavy Battle Rifle > --- INVENTORY (25) --- Improved Terrain Scanner Makeshift Light Armor Plating Makeshift System Restoration Module Recalibrator Battle Cannon Mining Laser Plasma Cutter Multitool Peak State ------------ > --- POWER ------------ (None) > --- PROPULSION ------- Flight Unit Makeshift Flight Unit > --- UTILITY ---------- Small Storage Unit Structural Scanner Makeshift Hacking Suite > --- WEAPON ----------- Medium Laser Heavy Battle Rifle > --- INVENTORY -------- Huge Storage Unit Improved Terrain Scanner Makeshift Light Armor Plating Makeshift System Restoration Module Recalibrator Mining Laser Plasma Cutter Multitool [Rating: 18] Favorites ----------- Power Ion Engine Engine Ion Engine Propulsion Light Treads Treads Light Treads Wheel Subdweller Monowheel Flight Unit Flight Unit Utility Structural Scanner Device Structural Scanner Storage Small Storage Unit Hackware Makeshift Hacking Suite Protection Light Armor Plating Weapon Medium Laser Energy Gun Medium Laser Energy Cannon Light EM Pulse Cannon Ballistic Gun Heavy Battle Rifle Build | -11 -10 -10 -10 ------- Run | Yrd Mat Min Sub Slots Evolved 1 | . 1 . . Power . | . . . . Propulsion . | . . . . Utility 1 | . 1 . . Weapon . | . . . . Parts Attached 28 | 7 9 3 9 Power 2 | 1 . 1 . Engine 2 | 1 . 1 . Core . | . . . . Reactor . | . . . . Propulsion 9 | 2 2 . 5 Treads 4 | 2 2 . . Leg . | . . . . Wheel 2 | . . . 2 Hover . | . . . . Flight 3 | . . . 3 Utility 8 | 3 2 1 2 Device 1 | 1 . . . Storage 3 | 1 1 . 1 Processor . | . . . . Hackware 1 | . . . 1 Protection 3 | 1 1 1 . Artifact . | . . . . Weapon 9 | 1 5 1 2 Energy Gun 4 | 1 2 1 . Energy Cannon 3 | . 3 . . Ballistic Gun 2 | . . . 2 Ballistic Cannon . | . . . . Launcher . | . . . . Special Weapon . | . . . . Impact Weapon . | . . . . Slashing Weapon . | . . . . Piercing Weapon . | . . . . Special Melee Weapon . | . . . . Unidentified Prototypes . | . . . . Parts Lost 8 | . . 1 7 Power 1 | . . . 1 Propulsion 3 | . . . 3 Utility 2 | . . 1 1 Weapon 2 | . . . 2 Highest Loss Streak 2 | . . 1 2 To Critical Strikes 1 | . . . 1 Average Backups 6 | 1 6 8 7 Power . | . . . . Propulsion . | . . . . Utility 4 | 1 4 6 5 Weapon . | . 1 1 1 Tool/Special . | . . . . Unused Backups 11 | . 1 . 10 Power . | . . . . Propulsion . | . . . . Utility 8 | . 1 . 7 Weapon 1 | . . . 1 Tool/Special 2 | . . . 2 Average Slot Usage (%) 87 | . 94 86 72 Engine 10 | . 12 12 1 Treads 17 | . 25 16 2 Flight 2 | . . . 12 Device 12 | . 12 12 12 Storage 10 | . 8 12 11 Hackware 1 | . . . 8 Protection 7 | . 12 6 . Energy Gun 16 | . 10 25 9 Energy Cannon 5 | . 12 . . Ballistic Gun 1 | . . . 9 Peak Build Rating 18 | 6 11 10 18 Average Rating 9 | 5 9 8 13 On Entrance 5 | . 6 9 8 Avg Prop Armor Cover (%) 9 | . . 9 . Naked Turns . | . . . . Heaviest Build 85 | 20 22 19 85 Greatest Support 40 | 40 40 40 40 Greatest Overweight (x) 28 | . . . 28 Average Overweight (x) . | . . . . Largest Inventory Capacity 25 | 10 8 8 25 Average Capacity 8 | 5 7 8 11 Most Carried 8 | 4 8 8 8 Average Carried 6 | 1 6 8 7 Final Capacity 25 | 5 8 8 25 Final Carried 8 | 4 8 8 8 Class Distribution -------------------- 100% | Hacker-Mutant Dominant Class ---------------- Hacker-Mutant | -10/Materials Hacker-Mutant | -10/Mines Hacker-Mutant | -10/Subcaves Resources | -11 -10 -10 -10 ----------- Run | Yrd Mat Min Sub Matter Collected 636 | 270 100 81 185 Remotely . | . . . . Salvage Created 1631 | 280 547 393 411 Parts 109 | 30 27 27 25 Haulers Intercepted 2 | . 2 . . Recyclers Shooed 1 | . 1 . . Parts Field Recycled . | . . . . Retrieved Matter . | . . . . Parts Self-Destructed . | . . . . Prevented . | . . . . Parts Restored . | . . . . Kills | -11 -10 -10 -10 ------- Run | Yrd Mat Min Sub Combat Hostiles Destroyed 28 | . 7 8 13 Guns 20 | . 2 5 13 Cannons 4 | . 4 . . AOE 1 | . 1 . . Classes Destroyed 11 | 3 5 1 2 Worker 5 | 2 1 2 . Tunneler 11 | 8 . 3 . Hauler 2 | . 2 . . Recycler 3 | 1 2 . . Mechanic 1 | . 1 . . Turret 2 | . . . 2 Watcher 3 | . 3 . . Swarmer 14 | . 6 2 6 Grunt 6 | . 1 4 1 Sentry 2 | . . 2 . Subdweller 6 | . . . 6 Best Kill Streak 6 | 4 4 2 6 Combat Bots Only 6 | . 2 2 6 Max Kills in Single Turn 2 | 1 1 1 2 Gunslinging 1 | . . . 1 Exploded 1 | . 1 . . Melee . | . . . . Uniques/NPCs Destroyed . | . . . . Combat | -11 -10 -10 -10 -------- Run | Yrd Mat Min Sub Hostile Shots Fired 228 | . 22 34 172 Missed 86 | . 8 7 71 Hits 142 | . 14 27 101 Projectile 142 | . 14 27 101 Critical Strikes 1 | . . . 1 Damage Taken 929 | 34 106 229 560 Core 256 | 23 5 44 184 Absorbed by Shields . | . . . . Ignored by Resistances 596 | 19 71 146 360 Core Remaining (%) 90 | 90 . . . Volleys Fired 140 | 26 26 27 61 Largest 2 | 1 2 2 2 Hottest 115 | 40 112 115 115 Shots Fired 224 | 26 47 54 97 Gun 189 | 26 12 54 97 Cannon 35 | . 35 . . Launcher . | . . . . Special . | . . . . Kinetic 51 | . . . 51 Thermal 107 | . 7 54 46 Explosive . | . . . . Electromagnetic 66 | 26 40 . . Robot Hit Streak 54 | 11 26 54 27 Robot Miss Streak 2 | 2 1 1 2 Penetration Max . | . . . . Secondary Targets 2 | . . 1 1 Max Gunslinging Chain 1 | . . 1 1 Shots Hit Robots 159 | 23 37 47 52 Core Hits 72 | 10 19 17 26 Critical Kills . | . . . . Critical Parts Destroyed . | . . . . Critical Strikes 8 | . . 5 3 Burn 8 | . . 5 3 Melee Attacks . | . . . . Impact . | . . . . Slashing . | . . . . Piercing . | . . . . Sneak Attacks . | . . . . Combat Hostiles . | . . . . Follow-up Attacks . | . . . . Damage Inflicted 2646 | 392 880 623 751 Guns 1835 | 309 152 623 751 Cannons 601 | . 601 . . Explosions 210 | 83 127 . . Melee . | . . . . Ramming . | . . . . Kinetic 445 | . . . 445 Thermal 1227 | 83 215 623 306 Explosive . | . . . . Electromagnetic 974 | 309 665 . . Impact . | . . . . Slashing . | . . . . Piercing . | . . . . Highest Corruption . | . . . . Average Corruption . | . . . . Corruption Purged . | . . . . Corruption Blocked . | . . . . Overload Shots . | . . . . Overflow Damage 27 | 8 19 . . Projectiles 8 | . 8 . . Explosions 19 | 8 11 . . Melee . | . . . . Knockbacks . | . . . . Impact . | . . . . Kinetic . | . . . . Secondary . | . . . . Self-Inflicted Damage 34 | 34 . . . Shots 2 | 2 . . . Rammed . | . . . . Targets Rammed . | . . . . Kicked . | . . . . Crushed . | . . . . Highest Temperature 551 | 48 294 551 28 Average Temperature 115 | 17 105 165 9 Received Heat Transfer 594 | . 24 156 414 Effects 11 | . . 11 . Shutdowns 2 | . . 2 . Matter Decay 1 | . . 1 . Short Circuit 1 | . . 1 . Damage (minor) 1 | . . 1 . Damage (major) 6 | . . 6 . Siege Activations . | . . . . Martial Activations . | . . . . Shielding Activations . | . . . . Robots Disrupted . | . . . . Combat Hostiles . | . . . . Robots Corrupted 2 | 1 1 . . Combat Hostiles . | . . . . Parts Fried 12 | 4 8 . . Impact Corruptions . | . . . . Robots Melted 3 | . . 3 . Combat Hostiles 3 | . . 3 . Parts Melted 15 | . 1 11 3 Heat Transferred 3778 | 150 409 2109 1110 Parts Sabotaged . | . . . . Parts Stolen . | . . . . Parts Stripped . | . . . . Power Chain Reactions 6 | 2 4 . . Alert | -11 -10 -10 -10 ------- Run | Yrd Mat Min Sub Maximum Alert Level . | . . . . Low Security (%) 100 | 100 100 100 . Level 1 . | . . . . Level 2 . | . . . . Level 3 . | . . . . Level 4 . | . . . . Level 5 . | . . . . High Security . | . . . . Max Security . | . . . . Peak Influence 60 | 15 60 54 . Initial . | . . . . Average 5 | 2 5 5 . Influence Increases 887 | 55 243 219 370 Destroy 0b10 Robot/C 480 | . 140 160 180 Destroy 0b10 Robot/NC 125 | 55 45 25 . Destroy Leader 90 | . 50 30 10 Disable Machine 4 | . . 4 . Destroy Structure 8 | . 8 . . Lose Combat Pursuer 180 | . . . 180 Influence Decreases 887 | 55 243 219 370 Time Decay 837 | 55 243 219 320 Lost Part 50 | . . . 50 Squads Dispatched . | . . . . Investigation . | . . . . Extermination . | . . . . Reinforcement . | . . . . Assault . | . . . . Garrison . | . . . . Intercept . | . . . . Searches Triggered . | . . . . Construction Impeded . | . . . . Haulers Reinforced . | . . . . Active Scanning Responses . | . . . . Cargo Convoy Interrupts . | . . . . Stealth | -11 -10 -10 -10 --------- Run | Yrd Mat Min Sub Distress Signals . | . . . . Communications Jammed . | . . . . Distress Signals . | . . . . Times Spotted 44 | . 13 8 23 Peak Tracking Total 6 | . 3 2 6 Tactical Retreats 3 | . . . 3 Traps | -11 -10 -10 -10 ------- Run | Yrd Mat Min Sub Traps Triggered 2 | . 1 . 1 Indirectly . | . . . . Trap Hack Attempts . | . . . . Triggered . | . . . . Disarmed . | . . . . Reprogrammed . | . . . . Reused . | . . . . Traps Extracted . | . . . . Installed . | . . . . Triggered . | . . . . Machines | -11 -10 -10 -10 ---------- Run | Yrd Mat Min Sub Machines Disabled 1 | . . 1 . Max in Single Turn 1 | . . 1 . Machines Repaired . | . . . . Machines Dismantled . | . . . . Machines Sabotaged . | . . . . Overloaded Fab Kills . | . . . . Hacking | -11 -10 -10 -10 --------- Run | Yrd Mat Min Sub Machines Accessed 2 | . . . 2 Terminals . | . . . . Fabricators . | . . . . Repair Stations . | . . . . Recycling Units . | . . . . Scanalyzers . | . . . . Garrison Access . | . . . . Total Hacks 3 | . . . 3 Successful 3 | . . . 3 Failed . | . . . . Catastrophic . | . . . . Database Lockouts . | . . . . Manual . | . . . . Terminals . | . . . . Fabricators . | . . . . Repair Stations . | . . . . Recycling Units . | . . . . Scanalyzers . | . . . . Garrison Access . | . . . . Terminal Hacks 3 | . . . 3 Record 1 | . . . 1 Open Door 1 | . . . 1 Release Object 1 | . . . 1 Fabricator Hacks . | . . . . Repair Station Hacks . | . . . . Recycling Unit Hacks . | . . . . Scanalyzer . | . . . . Garrison Access Hacks . | . . . . Unauthorized Hacks . | . . . . Terminals . | . . . . Fabricators . | . . . . Repair Stations . | . . . . Recycling Units . | . . . . Scanalyzers . | . . . . Garrison Access . | . . . . Data Cores Recovered . | . . . . Used . | . . . . Hacking Detections . | . . . . Full Trace Events . | . . . . Feedback Events . | . . . . Feedback Blocked . | . . . . Robot Schematics Acquired . | . . . . Robots Built . | . . . . Authchips . | . . . . Time . | . . . . Total Robot Build Rating . | . . . . Part Schematics Acquired . | . . . . Parts Built . | . . . . Authchips . | . . . . Time . | . . . . Total Part Build Rating . | . . . . Part Studies Acquired . | . . . . Parts Repaired . | . . . . Time . | . . . . Parts Recycled . | . . . . Recycled Matter . | . . . . Retrieved Matter . | . . . . Retrieved Components . | . . . . Parts Scanalyzed . | . . . . Part Schematics Acquired . | . . . . Parts Damaged . | . . . . Bothacking | -11 -10 -10 -10 ------------ Run | Yrd Mat Min Sub Used RIF Installer . | . . . . Robots Hacked . | . . . . Non-combat . | . . . . Combat . | . . . . Robot Hacks Applied . | . . . . Relay Couplers Released . | . . . . Fabnet Peak Effective % . | . . . . Robots Rewired . | . . . . Allies Hacked . | . . . . Hacks Repelled . | . . . . Allies | -11 -10 -10 -10 -------- Run | Yrd Mat Min Sub Total Allies . | . . . . Largest Group . | . . . . Highest-Rated Group . | . . . . Highest-Rated Ally . | . . . . Total Orders . | . . . . Ally Attacks . | . . . . Total Damage . | . . . . Kills . | . . . . Allies Corrupted . | . . . . Allies Melted . | . . . . Intel | -11 -10 -10 -10 ------- Run | Yrd Mat Min Sub Active Infowar (turns) 3452 | 207 1369 1302 574 Structural 3452 | 207 1369 1302 574 Robot Analysis Total . | . . . . Derelict Logs Recovered 3 | . . 1 2 Drone Launches . | . . . . Drone Recoveries . | . . . . Exploration | -11 -10 -10 -10 ------------- Run | Yrd Mat Min Sub Turns Passed 3510 | 265 1369 1302 574 Spaces Moved 2089 | 126 789 675 499 Core 18 | 5 . . 13 Treads 1609 | 121 789 675 24 Legs . | . . . . Wheels 22 | . . . 22 Hover . | . . . . Flight 440 | . . . 440 Fastest Speed 37 | 50 160 160 37 Average Speed 139 | 155 160 160 75 Slowest Speed 1450 | 160 160 160 1450 Overloaded Moves . | . . . . Propulsion Burnouts . | . . . . Robots Hopped . | . . . . Potential Cave-ins . | . . . . Cave-ins Triggered . | . . . . Exploration Rate (%) 60 | 7 99 99 38 Regions Visited 3 Branch Regions 2 Pre-discovered Areas 1 | . . . 1 Known Exits Taken 3 | 1 1 1 . Unknown Exits Taken . | . . . . Scrap Searched 11 | . . . 11 Spaces Dug 1 | . . . 1 Terrain Destroyed 12 | 4 7 . 1 Melee . | . . . . Projectile 1 | . . . 1 AOE 11 | 4 7 . . Terrain Rammed . | . . . . Walls Destroyed . | . . . . Machines Disabled . | . . . . Actions | -11 -10 -10 -10 --------- Run | Yrd Mat Min Sub Total 2466 | 169 852 846 599 Wait 162 | . 6 138 18 Move 2086 | 125 788 674 499 Hop . | . . . . Pick Up 29 | 10 11 . 8 Fast Attach 9 | . 3 . 6 Attach 12 | 7 3 . 2 Detach 2 | 1 1 . . Swap 8 | . 4 3 1 Drop 18 | . 10 4 4 Fire 140 | 26 26 27 61 Melee . | . . . . Ram . | . . . . Kick . | . . . . Crush . | . . . . Escape Stasis . | . . . . Rewire . | . . . . Trap . | . . . . Miscellaneous . | . . . . Route ------- -11/Scrapyard -10/Materials (discovered 5 exits: *Mat x3 / *Min / *Sub) -10/Mines (discovered 3 exits: *Mat x2 / *Sub) -10/Subcaves (discovered 1 exit: Mat) History --------- Turn | Location | Event 6 | -11/Scrapyard | Identified exit to Materials 6 | -11/Scrapyard | Discovered exit to Materials (range 16) 266 | -11/Scrapyard | Entered Materials 266 | -10/Materials | Evolved 1 slot: Utility x1 323 | -10/Materials | Build established: Hacker-Mutant 544 | -10/Materials | Identified exit to Mines 544 | -10/Materials | Discovered exit to Mines (range 16) 720 | -10/Materials | Identified exit to Materials 720 | -10/Materials | Discovered exit to Materials (range 5) 799 | -10/Materials | Discovered exit to Materials (range 16) 999 | -10/Materials | Discovered exit to Materials (range 5) 1196 | -10/Materials | Identified exit to Subcaves 1196 | -10/Materials | Discovered exit to Subcaves (range 8) 1635 | -10/Materials | Entered Mines 1706 | -10/Mines | Met a Derelict bent on vengeance 1760 | -10/Mines | Learned 4 Materials zone layouts 1942 | -10/Mines | Discovered exit to Materials (range 7) 1977 | -10/Mines | Discovered exit to Materials (range 6) 2083 | -10/Mines | Discovered exit to Subcaves (range 8) 2937 | -10/Mines | Entered Subcaves 3019 | -10/Subcaves | Core integrity fell below 50% 3111 | -10/Subcaves | Identified exit to Materials 3185 | -10/Subcaves | Shifting Twisted Machinery released Multitool 3194 | -10/Subcaves | Shifting Twisted Machinery released Piercing Trap 3198 | -10/Subcaves | Learned location of Recycling (-8) 3203 | -10/Subcaves | A swath of the cavern ceiling suddenly collapsed 3220 | -10/Subcaves | Shifting Twisted Machinery released Mak. Light Armor Plating 3232 | -10/Subcaves | Shifting Twisted Machinery released Scrap Shield 3364 | -10/Subcaves | Ambushed by Subdwellers from Twisted Machinery 3387 | -10/Subcaves | Core integrity fell below 20% 3511 | -10/Subcaves | Destroyed by Piercing Trap Last Messages --------------- 03324_ Med. Laser destroyed. 03325_ CY-N9O(R) destroyed. 03327_ HT-LQO(R) destroyed. 03333_ Acquired 20 matter. 03387_ I1-XAQ(R) destroyed. 03387_ Flight Unit destroyed. 03393_ A2-593(R) affixes Scrap Shield Fragment to Scrap Shield. 03396_ Sml. Storage Unit destroyed. 03399_ A2-593(R) destroyed. 03401_ Acquired 14 matter. 03405_ Acquired Huge Storage Unit. 03421_ Acquired Mak. Light Armor Plating. 03451_ Acquired Sub. Monowheel. 03471_ Acquired Imp. Terrain Scanner. 03472_ Acquired 30 matter. 03475_ Acquired Battle Cannon. 03511_ Triggered Piercing Trap. 03511_ Spikes shoot up from the floor. 03511_ Critical hit (Impale). Map ----- +----------------------------------------------------+ | | | | | | | ?????????????????????????????????????????????????? | | ?????????????????????????????????????????????????? | | ?????????????????????????????????????????????????? | | ?????????????????????????????????????????????????? | | ?????????????????????????????????????????????????? | | ?????????????????????????????????????????????????? | | ?????????????????????????????????????????????????? | | ?????????????????????????????????????????????????? | | ?????????????????????????????????????????????????? | | ?????????????????????????????????????????????????? | | ?????????????????????????????????????????????????? | | ?????????????????????????????????????????????????? | | ?????????????????????????????????????????????????? | | ???######?????????????????#####??????????????????? | | ??#########????????????########??????????????????? | | ##### #####?????????###### ??????????????????? | | #### ###????????##### ????????????????????? | | !"## " ###???????### ?????????????????????? | | !*%* " ####??????## #????????????????????? | | "&"% " ###?????###" ##????????????????????? | | #"## " [!#####??###" ##????????????????????? | | ########## %######?## ##????????????????????? | | ########## %""####### @ ##????????????????????? | | ???????### !& ########" ###??## ???????????????? | | ???????## ######" ####?## ?????????????? | | ???????## ""#### ## # ??????????????? | | ???????### " """ ?????????? | | ???????##### ## "" ?????????? | | ????????############""" ##### # # ?????????? | | ??????????##########"" ##### ######????????????? | | ?????????????????##"""""""##?? ###??????????????? | | ????????????????? """"""" ???????????????????? | | ????????????????? """ # ???????????????????? | | ????????????????? ###### ###???????????????????? | | ??????????????????####### ###???????????????????? | | ??????????????????????#######????????????????????? | | ????????????????????????#####????????????????????? | | ?????????????????????????????????????????????????? | | ?????????????????????????????????????????????????? | | ?????????????????????????????????????????????????? | | ?????????????????????????????????????????????????? | | ?????????????????????????????????????????????????? | | ?????????????????????????????????????????????????? | | ?????????????????????????????????????????????????? | | ?????????????????????????????????????????????????? | | ????????????????????????????????????????????????